fUSD/lending_fUSD_20240602
["ID","MTS","AMOUNT","RATE_DAILY","PERIOD"]
[328399076,1717338853101,500.0,0.00034564,30]
[328399077,1717338860428,500.0,0.00034564,30]
[328399078,1717338860687,512.53625569,0.00034564,30]
[328399079,1717338862619,511.3440866,0.00034564,30]
[328399080,1717338873135,500.0,0.00034564,30]
[328399081,1717338873408,351.14,0.00034564,30]
[328399082,1717338878175,500.0,0.00034564,30]
[328399083,1717338980180,500.0,0.00034564,30]
[328399084,1717338980474,500.0,0.00034564,30]
[328399085,1717338980739,500.0,0.00034564,30]
[328399086,1717338981015,520.22490231,0.00034564,30]
[328399087,1717338984716,519.87184469,0.00034564,30]
[328399088,1717338989207,500.0,0.00034564,30]
[328399089,1717338989484,500.0,0.00034564,30]
[328399090,1717339016989,500.0,0.00034564,30]
[328399091,1717339017105,500.0,0.00034564,30]
[328399092,1717339017373,500.0,0.00034564,30]
[328399093,1717339017634,520.2283885,0.00034564,30]
[328399094,1717339019554,491.90886109,0.00034564,30]
[328399095,1717339037190,393.21797096,0.00034564,30]
[328399096,1717339071060,500.0,0.00034564,30]
[328399097,1717339071307,289.21888486,0.00034564,30]
[328399140,1717339122666,156.04,0.00013214,2]
[328399182,1717339164802,500.0,0.00034573,30]
[328399183,1717339165230,500.0,0.00034573,30]
[328399184,1717339165490,500.0,0.00034573,30]
[328399186,1717339165787,528.45026399,0.00034573,30]
[328399194,1717339173026,382157.22901835,0.00013214,2]
[328399251,1717339229338,500.0,0.00034573,30]
[328399253,1717339229489,500.0,0.00034573,30]
[328399254,1717339229752,500.0,0.00034573,30]
[328399255,1717339230046,500.0,0.00034573,30]
[328399256,1717339230322,500.0,0.00034573,30]
[328399258,1717339230605,229.54,0.00034573,30]
[328399264,1717339236122,2609.33745932,0.0001295,2]
[328399271,1717339242354,500.0,0.00034573,30]
[328399273,1717339242963,601.26107254,0.00034573,30]
[328399274,1717339243117,682.73,0.00010959,2]
[328399285,1717339253827,568.94,0.00010959,2]
[328399288,1717339256133,138.99254068,0.0001295,2]
[328399289,1717339256155,2025.03284582,0.0001295,2]
[328399298,1717339264182,474.11,0.00010959,2]
[328399309,1717339274982,395.1,0.00010959,2]
[328399317,1717339282158,410.42983639,0.00010959,2]
[328399321,1717339285510,329.25,0.00010959,2]
[328399324,1717339287075,155.0,0.00010959,2]
[328399326,1717339288774,211.07731779,0.00010959,2]
[328399327,1717339288795,4000.0,0.00010959,2]
[328399329,1717339288816,4000.0,0.00010959,2]
[328399330,1717339288836,4000.0,0.00010959,2]
[328399331,1717339288857,4000.0,0.00010959,2]
[328399332,1717339288878,4000.0,0.00010959,2]
[328399333,1717339288899,39.00625468,0.00010959,2]
[328399335,1717339290427,3960.99374532,0.00010959,2]
[328399336,1717339290450,4000.0,0.00010959,2]
[328399337,1717339290472,4000.0,0.00010959,2]
[328399338,1717339290494,4000.0,0.00010959,2]
[328399339,1717339290516,3797.5907161,0.00010959,2]
[328399341,1717339291517,202.4092839,0.00010959,2]
[328399342,1717339291539,4000.0,0.00010959,2]
[328399343,1717339291564,4000.0,0.00010959,2]
[328399344,1717339291590,4000.0,0.00010959,2]
[328399345,1717339291613,4000.0,0.00010959,2]
[328399346,1717339291638,4000.0,0.00010959,2]
[328399347,1717339291661,4000.0,0.00010959,2]
[328399348,1717339291683,4000.0,0.00010959,2]
[328399349,1717339291707,4000.0,0.00010959,2]
[328399351,1717339291908,78279.26209385,0.00010959,2]
[328399352,1717339291935,40000.0,0.00010959,2]
[328399386,1717339326935,514.39181179,0.00034573,30]
[328399458,1717339390850,500.0,0.00034573,30]
[328399459,1717339429894,401.70874526,0.00034573,30]
[328399811,1717339748222,-1979.14657313,0.00010944,2]
[328399812,1717339748244,-275.96686544,0.00010945,2]
[328399813,1717339748266,-1695.78776143,0.00010945,2]
[328399820,1717339751175,-495.69356927,0.00010945,2]
[328399821,1717339751197,-274.37,0.00010959,2]
[328399822,1717339751220,-228.64,0.00010959,2]
[328399823,1717339751241,-190.54,0.00010959,2]
[328399824,1717339751265,-158.78,0.00010959,2]
[328399825,1717339751291,-793.92,0.00010959,2]
[328399826,1717339751311,-410.01735941,0.00010959,2]
[328399827,1717339751333,-155.0,0.00010959,2]
[328399828,1717339751356,-12127.24404973,0.00010959,2]
[328399992,1717339831766,-183.97791029,0.00010958,2]
[328399993,1717339831776,-30.61645813,0.00010959,2]
[328399994,1717339831786,-912.20563159,0.00010959,2]
[328399996,1717339831864,-12688.63619916,0.00010959,2]
[328399997,1717339831875,-503485.97263835,0.00010959,2]
[328399998,1717339832113,-3421.26789501,0.00010959,2]
[328399999,1717339832124,-319.5176318,0.00010959,2]
[328400000,1717339832230,-767.88761238,0.00010959,2]
[328400001,1717339832243,-1247.964,0.00010959,2]
[328400002,1717339832258,-1358.33124,0.00010959,2]
[328400013,1717339837701,-394.14575585,0.00010958,2]
[328400015,1717339837714,-1292.04521374,0.00010958,2]
[328400016,1717339837947,-292.95560354,0.00010958,2]
[328400017,1717339837956,-24192.91163903,0.00010959,2]
[328400018,1717339837965,-189.52958065,0.00010959,2]
[328400019,1717339837975,-1501.05056318,0.000129,2]
[328400020,1717339837984,-167.97,0.00012942,2]
[328400021,1717339837994,-177.60436149,0.00013202,2]
[328400022,1717339838003,-198.18867319,0.0001321,2]
[328400023,1717339838013,-1660.56488652,0.00013211,2]
[328400024,1717339838023,-145171.39940198,0.00013212,2]
[328400025,1717339838033,-310.73311748,0.00013213,2]
[328400026,1717339838042,-420.58,0.00013831,2]
[328400027,1717339838052,-1501.05056312,0.00014048,2]
[328400028,1717339838062,-801.87,0.00014881,2]
[328400029,1717339838071,-3341.34,0.00015781,2]
[328400030,1717339838080,-1678.44,0.00015794,2]
[328400031,1717339838090,-150.99,0.00015794,2]
[328400032,1717339838100,-4865.94,0.00015794,2]
[328400033,1717339838109,-623.11,0.00015826,3]
[328400034,1717339838119,-150.99,0.00015826,2]
[328400035,1717339838129,-499.99,0.00015826,2]
[328400036,1717339838138,-825.74,0.00015826,2]
[328400037,1717339838148,-4061.7289929,0.00015862,2]
[328400039,1717339838309,-19828.2710071,0.00015862,2]
[328400041,1717339838320,-200.0,0.00015875,2]
[328400043,1717339838330,-1272.139,0.00016,2]
[328400046,1717339838340,-193.906,0.00016,2]
[328400049,1717339838351,-2400.0,0.00016,2]
[328400052,1717339838360,-159.0,0.00016,2]
[328400055,1717339838371,-235.291,0.00016,2]
[328400058,1717339838381,-540.9759929,0.00016,2]
[328400061,1717339838397,-952.4240071,0.00016,2]
[328400063,1717339838411,-7382.85985296,0.00016,2]
[328400066,1717339838431,-30570.14014704,0.00016,2]
[328400068,1717339838440,-282.1196435,0.00016017,2]
[328400070,1717339838448,-420.58,0.00016095,2]
[328400072,1717339838457,-157.44,0.00016171,2]
[328400074,1717339838467,-250.0,0.00016181,2]
[328400076,1717339838476,-943.46,0.00016207,2]
[328400078,1717339838486,-157.44,0.0001622,2]
[328400080,1717339838495,-500.0,0.00016221,2]
[328400100,1717339838677,-150.0,0.00016228,2]
[328400102,1717339838688,-250.0,0.00016252,2]
[328400104,1717339838698,-800.0,0.00016252,2]
[328400106,1717339838708,-157.44,0.0001627,2]
[328400108,1717339838717,-157.44,0.00016319,2]
[328400110,1717339838727,-157.44,0.00016369,2]
[328400112,1717339838736,-157.44,0.00016418,2]
[328400114,1717339838745,-157.44,0.00016468,2]
[328400116,1717339838755,-157.44,0.00016518,2]
[328400118,1717339838764,-200.0,0.00016541,2]
[328400120,1717339838773,-157.44,0.00016567,2]
[328400122,1717339838783,-157.44,0.00016617,2]
[328400124,1717339838792,-157.44,0.00016666,2]
[328400126,1717339838801,-157.44,0.00016716,2]
[328400128,1717339838812,-155.28,0.00016749,2]
[328400130,1717339838821,-155.28,0.00016761,2]
[328400132,1717339838830,-157.44,0.00016765,2]
[328400134,1717339838840,-155.28,0.00016773,2]
[328400136,1717339838849,-155.28,0.00016785,2]
[328400138,1717339838859,-155.28,0.00016797,2]
[328400140,1717339838868,-155.28,0.00016809,2]
[328400142,1717339838877,-157.44,0.00016815,2]
[328400144,1717339838887,-155.28,0.00016821,2]
[328400146,1717339838896,-171.2,0.00016824,2]
[328400148,1717339838907,-155.28,0.00016833,2]
[328400150,1717339838917,-3082.05,0.00016845,2]
[328400152,1717339838926,-157.44,0.00016865,2]
[328400154,1717339838936,-157.44,0.00016914,2]
[328400156,1717339838944,-157.44,0.00016964,2]
[328400158,1717339838955,-157.44,0.00017013,2]
[328400160,1717339838964,-200.0,0.000178,6]
[328400162,1717339838973,-500.0,0.00017856,2]
[328400164,1717339838983,-200.0,0.00017856,2]
[328400166,1717339838992,-27311.2,0.00017899,2]
[328400168,1717339839002,-3440.3735,0.00017899,2]
[328400170,1717339839012,-151.0,0.00017899,2]
[328400172,1717339839022,-151.0,0.00017899,2]
[328400174,1717339839031,-151.0,0.00017899,2]
[328400176,1717339839041,-215.689073,0.00017899,2]
[328400178,1717339839052,-151.0,0.00017899,2]
[328400180,1717339839061,-151.0,0.00017899,2]
[328400182,1717339839070,-2816.1336,0.000179,2]
[328400184,1717339839080,-160.72273957,0.000179,2]
[328400186,1717339839090,-161.1363847,0.000179,2]
[328400188,1717339839099,-500.0,0.000179,6]
[328400190,1717339839109,-10140.92233814,0.000179,2]
[328400192,1717339839119,-151.16,0.00017988,2]
[328400194,1717339839128,-151.16,0.0001799,2]
[328400196,1717339839138,-783.15448036,0.00017998,2]
[328400198,1717339839148,-4841.40156946,0.00017998,2]
[328400200,1717339839158,-128384.54847031,0.00018,2]
[328400216,1717339839311,-1985.592571,0.00018,2]
[328400219,1717339839323,-1138.47,0.00018,2]
[328400221,1717339839334,-1475.1160819,0.00018,2]
[328400223,1717339839347,-478.3539069,0.00018,2]
[328400225,1717339839359,-599.72586911,0.00018,2]
[328400228,1717339839370,-680.9102,0.00018,2]
[328400230,1717339839381,-3135.10340248,0.00018,2]
[328400232,1717339839394,-1912.11003802,0.00018,2]
[328400290,1717339841142,-1501.05056312,0.00017236,2]
[328400291,1717339841151,-178.71858842,0.000179,2]
[328400292,1717339842384,500.0,0.0003457,30]
[328400295,1717339842648,194.75572817,0.0003457,30]
[328400299,1717339842847,-739.04591158,0.000179,2]
[328400301,1717339842857,-503.56151656,0.00018,2]
[328400308,1717339842943,-506.62636179,0.00018,2]
[328400309,1717339843035,-740.93538906,0.00018,2]
[328400310,1717339843046,-3351.22198318,0.00018,2]
[328400311,1717339843127,-903.814,0.00018,2]
[328400312,1717339843139,-864.39422921,0.00018,2]
[328400313,1717339843152,-3808.69700109,0.00018,2]
[328400314,1717339843163,-421.62998581,0.00018,2]
[328400315,1717339843402,-1197.821625,0.00018,2]
[328400316,1717339843414,-59107.66880831,0.00018,2]
[328400331,1717339844824,-309.9416677,0.00018,2]
[328400332,1717339844835,-8188.96717548,0.00018,2]
[328400333,1717339844939,-1898.84001584,0.00018,2]
[328400334,1717339844950,-528.8,0.00018,2]
[328400335,1717339844961,-16875.01691684,0.00018,2]
[328400336,1717339845840,-390368.7511112,0.00018,2]
[328400365,1717339846463,-677.34,0.00018,2]
[328400366,1717339846478,-17298.0,0.00018,2]
[328400368,1717339846490,-1707.0,0.00018,2]
[328400370,1717339846502,-458.11552598,0.00018,2]
[328400372,1717339846513,-2303.75270085,0.00018,2]
[328400374,1717339846525,-469.30795553,0.00018,2]
[328400376,1717339846536,-37250.0,0.00018,2]
[328400378,1717339846548,-576.72697962,0.00018,2]
[328400381,1717339846559,-4247.25,0.00018,2]
[328400383,1717339846570,-637.5891004,0.00018,2]
[328400385,1717339846582,-62409.1126317,0.00018,2]
[328400387,1717339846595,-12536.63370597,0.00018,2]
[328400389,1717339846607,-577.02751537,0.00018,2]
[328400392,1717339846619,-12508.88913794,0.00018,2]
[328400393,1717339846631,-3753.150025,0.00018,2]
[328400394,1717339846643,-443.63479367,0.00018,2]
[328400395,1717339846657,-611.967,0.00018,2]
[328400396,1717339846668,-361.81700272,0.00018,2]
[328400397,1717339846681,-302.524,0.00018,2]
[328400398,1717339846693,-17011.5830724,0.00018,2]
[328400399,1717339846704,-5734.8,0.00018,2]
[328400400,1717339846716,-3617.48673156,0.00018,2]
[328400401,1717339846728,-3323.00748072,0.00018,2]
[328400402,1717339846741,-349.00242578,0.00018,2]
[328400403,1717339846752,-525.20953037,0.00018,2]
[328400404,1717339846765,-553.56974129,0.00018,2]
[328400405,1717339846777,-434.9852885,0.00018,2]
[328400406,1717339847212,-4176.69491516,0.00018,2]
[328400407,1717339861728,500.0,0.0003457,30]
[328400408,1717339866906,500.0,0.0003457,30]
[328400409,1717339867150,500.0,0.0003457,30]
[328400410,1717339867427,478.40449716,0.0003457,30]
[328400411,1717339869679,500.0,0.0003457,30]
[328400412,1717339870123,564.35,0.0003457,30]
[328400413,1717339872636,500.0,0.0003457,30]
[328400414,1717339874683,500.0,0.0003457,30]
[328400415,1717339874959,500.0,0.0003457,30]
[328400416,1717339875341,500.0,0.0003457,30]
[328400417,1717339875582,500.0,0.0003457,30]
[328400418,1717339876193,500.0,0.0003457,30]
[328400419,1717339885175,500.0,0.0003457,30]
[328400420,1717339885477,500.0,0.0003457,30]
[328400421,1717339885740,500.0,0.0003457,30]
[328400422,1717339885996,500.0,0.0003457,30]
[328400423,1717339886286,500.0,0.0003457,30]
[328400425,1717339889524,562.77619216,0.0003457,30]
[328400426,1717339891958,500.0,0.0003457,30]
[328400427,1717339894404,538.72754046,0.0003457,30]
[328400428,1717339898745,500.0,0.0003457,30]
[328400429,1717339903747,500.0,0.0003457,30]
[328400430,1717339909543,500.0,0.0003457,30]
[328400431,1717339915154,500.0,0.0003457,30]
[328400432,1717339915377,500.0,0.0003457,30]
[328400433,1717339920140,500.0,0.0003457,30]
[328400434,1717339921132,346.81207798,0.0003457,30]
[328400435,1717339923784,527.54442086,0.0003457,30]
[328400436,1717339931806,500.0,0.0003457,30]
[328400437,1717339932092,282.07,0.0003457,30]
[328400438,1717339943217,300.06755197,0.0003457,30]
[328400440,1717339954672,587.74284345,0.0003457,30]
[328400441,1717339965240,500.0,0.0003457,30]
[328400443,1717339967351,500.0,0.0003457,30]
[328400444,1717339971800,500.0,0.0003457,30]
[328400445,1717339981104,500.0,0.0003457,30]
[328400446,1717339981384,500.0,0.0003457,30]
[328400447,1717339981797,500.0,0.0003457,30]
[328400448,1717339983885,500.0,0.0003457,30]
[328400449,1717339986493,355.44,0.0003457,30]
[328400450,1717339988139,500.0,0.0003457,30]
[328400451,1717340003769,500.0,0.0003457,30]
[328400452,1717340004052,230.09920693,0.0003457,30]
[328400453,1717340008156,500.0,0.0003457,30]
[328400454,1717340017061,500.0,0.0003457,30]
[328400455,1717340017504,589.09,0.0003457,30]
[328400456,1717340029216,500.0,0.0003457,30]
[328400457,1717340029492,500.0,0.0003457,30]
[328400458,1717340029872,500.0,0.0003457,30]
[328400459,1717340030156,500.0,0.0003457,30]
[328400460,1717340030461,543.33175873,0.0003457,30]
[328400461,1717340069797,630.75063948,0.0003457,30]
[328400462,1717340083980,500.0,0.0003457,30]
[328400463,1717340084846,606.97789797,0.0003457,30]
[328400464,1717340089157,500.0,0.0003457,30]
[328400465,1717340089454,500.0,0.0003457,30]
[328400466,1717340089789,500.0,0.0003457,30]
[328400467,1717340090149,500.0,0.0003457,30]
[328400468,1717340090586,500.0,0.0003457,30]
[328400469,1717340092657,500.0,0.0003457,30]
[328400470,1717340092981,500.0,0.0003457,30]
[328400471,1717340093274,500.0,0.0003457,30]
[328400472,1717340093544,500.0,0.0003457,30]
[328400473,1717340093812,500.0,0.0003457,30]
[328400474,1717340098058,500.0,0.0003457,30]
[328400475,1717340098342,500.0,0.0003457,30]
[328400476,1717340100435,500.0,0.0003457,30]
[328400477,1717340103244,500.0,0.0003457,30]
[328400478,1717340105517,500.0,0.0003457,30]
[328400479,1717340107631,500.0,0.0003457,30]
[328400480,1717340109123,556.69223399,0.0003457,30]
[328400481,1717340109722,500.0,0.0003457,30]
[328400482,1717340110326,500.0,0.0003457,30]
[328400483,1717340110624,550.31,0.0003457,30]
[328400484,1717340113064,595.21282997,0.0003457,30]
[328400485,1717340115509,534.82572759,0.0003457,30]
[328400486,1717340119243,500.0,0.0003457,30]
[328400487,1717340120998,500.0,0.0003457,30]
[328400488,1717340121372,500.0,0.0003457,30]
[328400489,1717340123221,544.22584445,0.0003457,30]
[328400490,1717340125533,500.0,0.0003457,30]
[328400491,1717340133232,212.36343804,0.0003457,30]
[328400492,1717340136795,545.63367195,0.0003457,30]
[328400493,1717340138845,556.70615356,0.0003457,30]
[328400494,1717340142223,554.46512872,0.0003457,30]
[328400495,1717340143203,500.0,0.0003457,30]
[328400496,1717340144490,500.0,0.0003457,30]
[328400497,1717340144755,500.0,0.0003457,30]
[328400498,1717340145014,643.91209468,0.0003457,30]
[328400499,1717340146566,549.64290783,0.0003457,30]
[328400500,1717340147349,500.0,0.0003457,30]
[328400501,1717340147622,500.0,0.0003457,30]
[328400502,1717340147966,151.08144386,0.0003457,30]
[328400503,1717340151802,500.0,0.0003457,30]
[328400504,1717340152084,500.0,0.0003457,30]
[328400505,1717340154174,500.0,0.0003457,30]
[328400506,1717340154439,468.90647504,0.0003457,30]
[328400507,1717340156934,528.39450744,0.0003457,30]
[328400508,1717340159147,523.47761685,0.0003457,30]
[328400509,1717340161256,500.0,0.0003457,30]
[328400510,1717340161517,152.02529636,0.0003457,30]
[328400511,1717340166608,531.14914411,0.0003457,30]
[328400512,1717340171126,500.0,0.0003457,30]
[328400513,1717340171414,530.09829383,0.0003457,30]
[328400514,1717340175578,500.0,0.0003457,30]
[328400515,1717340175903,293.31898297,0.0003457,30]
[328400516,1717340177924,500.0,0.0003457,30]
[328400517,1717340178234,500.0,0.0003457,30]
[328400518,1717340178497,329.08,0.0003457,30]
[328400519,1717340179278,500.0,0.0003457,30]
[328400520,1717340183543,529.27607193,0.0003457,30]
[328400521,1717340185149,500.0,0.0003457,30]
[328400522,1717340185419,500.0,0.0003457,30]
[328400523,1717340185611,500.0,0.0003457,30]
[328400524,1717340185705,239.65655369,0.0003457,30]
[328400525,1717340185897,500.0,0.0003457,30]
[328400526,1717340187989,527.72898249,0.0003457,30]
[328400527,1717340190753,500.0,0.0003457,30]
[328400528,1717340191043,500.0,0.0003457,30]
[328400529,1717340191315,500.0,0.0003457,30]
[328400530,1717340191576,251.74096928,0.0003457,30]
[328400531,1717340193581,500.0,0.0003457,30]
[328400532,1717340193887,557.50052269,0.0003457,30]
[328400533,1717340209586,500.0,0.0003457,30]
[328400534,1717340209638,532.7106258,0.0003457,30]
[328400535,1717340209854,500.0,0.0003457,30]
[328400536,1717340211984,500.0,0.0003457,30]
[328400537,1717340212245,198.29672107,0.0003457,30]
[328400538,1717340216860,500.0,0.0003457,30]
[328400539,1717340217137,500.0,0.0003457,30]
[328400540,1717340217428,302.71109148,0.0003457,30]
[328400541,1717340221988,527.64065849,0.0003457,30]
[328400542,1717340224315,500.0,0.0003457,30]
[328400543,1717340224588,192.07442764,0.0003457,30]
[328400544,1717340226376,500.0,0.0003457,30]
[328400545,1717340226649,461.7234749,0.0003457,30]
[328400546,1717340226706,529.44861806,0.0003457,30]
[328400547,1717340233797,500.0,0.0003457,30]
[328400548,1717340234071,532.87652355,0.0003457,30]
[328400549,1717340236007,533.4475065,0.0003457,30]
[328400550,1717340236187,531.77660622,0.0003457,30]
[328400551,1717340238082,574.20365012,0.0003457,30]
[328400552,1717340241499,500.0,0.0003457,30]
[328400553,1717340242089,359.77668131,0.0003457,30]
[328400554,1717340242379,500.0,0.0003457,30]
[328400555,1717340244102,531.98552355,0.0003457,30]
[328400556,1717340246663,500.0,0.0003457,30]
[328400557,1717340260473,633.4,0.0003457,30]
[328400558,1717340262542,500.0,0.0003457,30]
[328400559,1717340262794,500.0,0.0003457,30]
[328400560,1717340263054,583.96,0.0003457,30]
[328400561,1717340275627,543.45744191,0.0003457,30]
[328400562,1717340278469,573.81834904,0.0003457,30]
[328400563,1717340280635,537.26708574,0.0003457,30]
[328400564,1717340285680,564.16909171,0.0003457,30]
[328400565,1717340316609,500.0,0.0003457,30]
[328400566,1717340316890,500.0,0.0003457,30]
[328400567,1717340317166,500.0,0.0003457,30]
[328400568,1717340317433,500.0,0.0003457,30]
[328400569,1717340317706,500.0,0.0003457,30]
[328400570,1717340410314,-155.0,0.00010957,2]
[328400571,1717340410336,-1979.14657313,0.00010957,2]
[328400572,1717340410359,-940.14892551,0.00010958,2]
[328400573,1717340410381,-73370.70450136,0.00010959,2]
[328400574,1717340450988,544.68427533,0.00034544,30]
[328400575,1717340474376,166.36996482,0.00034544,30]
[328400576,1717340481197,500.0,0.00034544,30]
[328400577,1717340481455,500.0,0.00034544,30]
[328400578,1717340481712,223.07466767,0.00034544,30]
[328400579,1717340490931,499.45481397,0.00034544,30]
[328400580,1717340510229,558.26385189,0.00034544,30]
[328400581,1717340510581,532.36800862,0.00034544,30]
[328400582,1717340515240,507.06601386,0.00034544,30]
[328400583,1717340535237,514.80914239,0.00034544,30]
[328400584,1717340537809,559.23343107,0.00034544,30]
[328400585,1717340545426,532.23440027,0.00034544,30]
[328400586,1717340552672,313.46115937,0.00034544,30]
[328400587,1717340553998,549.70147189,0.00034544,30]
[328400588,1717340585917,500.0,0.00034544,30]
[328400589,1717340586154,500.0,0.00034544,30]
[328400590,1717340586411,616.66194273,0.00034544,30]
[328400591,1717340592702,500.0,0.00034544,30]
[328400592,1717340593003,287.75859287,0.00034544,30]
[328400594,1717340907019,255.50227426,0.00034544,30]
[328400595,1717340936984,500.0,0.00034544,30]
[328400596,1717340937223,502.96057175,0.00034544,30]
[328400597,1717340960158,-155.0,0.00010957,2]
[328400598,1717340960178,-1399.11450875,0.00010958,2]
[328400599,1717340967318,-580.03206438,0.00010958,2]
[328400600,1717340967342,-604.66497966,0.00010959,2]
[328400601,1717340977665,500.0,0.00034542,30]
[328400602,1717340977928,500.0,0.00034542,30]
[328400603,1717340978230,558.02,0.00034542,30]
[328400604,1717341004955,500.0,0.00034542,30]
[328400613,1717341032292,-105.93626666,0.00010959,2]
[328400614,1717341032302,-180.49244642,0.00015281,2]
[328400615,1717341032311,-399.55,0.00015382,2]
[328400616,1717341032321,-3341.34,0.00016239,2]
[328400617,1717341032331,-623.11,0.00016246,3]
[328400618,1717341032341,-500.0,0.00016278,3]
[328400619,1717341032351,-150.0,0.00016294,2]
[328400620,1717341032360,-4061.72,0.00016295,2]
[328400621,1717341032370,-1678.44,0.00016319,2]
[328400622,1717341032380,-1000.0,0.00016345,2]
[328400623,1717341032389,-499.99,0.00016345,2]
[328400624,1717341032399,-150.99,0.00016345,2]
[328400625,1717341032409,-150.99,0.00016383,2]
[328400626,1717341032418,-4865.94,0.00016383,2]
[328400627,1717341032428,-250.0,0.00016392,2]
[328400628,1717341032437,-250.0,0.000164,2]
[328400629,1717341032447,-908.93,0.000164,2]
[328400630,1717341032456,-825.74,0.000164,2]
[328400631,1717341032465,-162.77,0.00016484,2]
[328400632,1717341032474,-368.16128692,0.00017077,2]
[328400633,1717341032493,-73.50871308,0.00017077,2]
[328400634,1717341032502,-441.67,0.00017082,2]
[328400635,1717341032512,-441.67,0.00017086,2]
[328400636,1717341032521,-441.67,0.00017091,2]
[328400637,1717341032530,-441.67,0.00017095,2]
[328400638,1717341032539,-441.67,0.00017099,2]
[328400639,1717341032549,-441.67,0.00017104,2]
[328400641,1717341032558,-441.67,0.00017108,2]
[328400643,1717341032567,-441.67,0.00017113,2]
[328400645,1717341032577,-430.58406507,0.00017117,2]
[328400647,1717341032588,-11.08593493,0.00017117,2]
[328400649,1717341032597,-441.67,0.00017122,2]
[328400651,1717341032606,-303.51694864,0.00017126,2]
[328400685,1717341038110,-138.15305136,0.00017126,2]
[328400686,1717341038120,-210.0578447,0.00017131,2]
[328400687,1717341038220,-231.6121553,0.00017131,2]
[328400688,1717341038230,-440.08379485,0.00017135,2]
[328400689,1717341038335,-1.58620515,0.00017135,2]
[328400690,1717341038345,-441.67,0.0001714,2]
[328400691,1717341038355,-441.67,0.00017144,2]
[328400692,1717341038364,-441.67,0.00017149,2]
[328400693,1717341038373,-441.67,0.00017153,2]
[328400694,1717341038383,-254.45037925,0.00017158,2]
[328400695,1717341038395,-187.21962075,0.00017158,2]
[328400696,1717341038404,-997.002,0.00017162,2]
[328400697,1717341038414,-441.67,0.00017162,2]
[328400698,1717341038423,-474.29092432,0.00017255,2]
[328400699,1717341038432,-288.36894742,0.00017256,2]
[328400700,1717341038442,-81.88741318,0.00017258,2]
[328400702,1717341038454,-715.5495421,0.00017258,2]
[328400704,1717341038465,-383.65,0.00017258,2]
[328400707,1717341038476,-261.9,0.00017258,2]
[328400709,1717341038487,-849.33,0.00017258,2]
[328400711,1717341038498,-325.82,0.00017258,2]
[328400716,1717341038537,-9.14290181,0.00017258,2]
[328400775,1717341041157,-575.24876865,0.00017258,2]
[328400777,1717341041168,-524.41258543,0.00017258,2]
[328400779,1717341041178,-399.55,0.00017645,2]
[328400781,1717341041188,-412.75360643,0.00017686,2]
[328400782,1717341041197,-500.0,0.00017856,2]
[328400783,1717341041206,-1727.78701147,0.00017899,2]
[328400788,1717341041272,-251.35956166,0.00017899,2]